Cogmind - Beta 14 @@@ ROGUE MODE // 2024.10.01 @ 20:12:36 Player: Xaria Result: Destroyed by as-94837 with Assembled Maul Performance ------------- Evolutions (0) 0 Regions Visited (4) 800 Robots Destroyed (45) 225 Value Destroyed (842) 842 Prototype IDs (24) 480 Alien Tech Used (0) 0 Bonus (300) 300 TOTAL SCORE: 2647 Bonus ------- Aligned with FarCom 300 Cogmind --------- Core Integrity 0/250 Matter 291/300 Energy 125/125 System Corruption 0% Temperature Cool (0) Movement Rolling (140) Ox4 Location -9/Mines Parts ------- > --- POWER (1) -------- Light Ion Engine > --- PROPULSION (2) --- Light Treads Wheel > --- UTILITY (2) ------ High-capacity Storage Unit Seismic Detector > --- WEAPON (2) ------- Light Assault Rifle Light Assault Rifle > --- INVENTORY (20) --- Light Ion Engine Flight Unit Flight Unit Flight Unit Improved Heat Sink Medium Storage Unit Large Storage Unit High-capacity Matter Pod (200) Structural Scanner ECM Suite Hacking Suite Splice Drone Bay (6/6) Small Laser Beam Cannon Assault Rifle Grenade Launcher Rocket Launcher Datajack Field Lobotomy Kit (5) Mining Laser Peak State ------------ > --- POWER ------------ Ion Engine > --- PROPULSION ------- Light Treads Light Treads > --- UTILITY ---------- High-capacity Storage Unit Splice Drone Bay > --- WEAPON ----------- Medium Laser Small Laser > --- INVENTORY -------- Light Ion Engine Wheel Heat Sink Heat Sink Medium Storage Unit Large Storage Unit Large Matter Pod Structural Scanner ECM Suite Hacking Suite Small Laser Beam Cannon Light Assault Rifle Light Assault Rifle Grenade Launcher Grenade Launcher Datajack Mining Laser [Rating: 15] Favorites ----------- Power Ion Engine Engine Ion Engine Propulsion Light Treads Treads Light Treads Leg Aluminum Leg Wheel Wheel Utility High-capacity Storage Unit Device Structural Scanner Storage High-capacity Storage Unit Protection Light Armor Plating Weapon Light Assault Rifle Energy Gun Medium Laser Ballistic Gun Light Assault Rifle Launcher Grenade Launcher Build | -11 -10 -10 -10 -9 ------- Run | Yrd Mat Min Exi Min Slots Evolved . | . . . . . Power . | . . . . . Propulsion . | . . . . . Utility . | . . . . . Weapon . | . . . . . Parts Attached 64 | 10 32 18 . 4 Power 6 | 1 3 1 . 1 Engine 6 | 1 3 1 . 1 Core . | . . . . . Reactor . | . . . . . Propulsion 25 | 4 13 6 . 2 Treads 13 | 1 9 3 . . Leg 2 | 2 . . . . Wheel 10 | 1 4 3 . 2 Hover . | . . . . . Flight . | . . . . . Utility 18 | 2 10 5 . 1 Device 11 | 1 4 5 . 1 Storage 4 | 1 3 . . . Processor . | . . . . . Hackware . | . . . . . Protection 3 | . 3 . . . Artifact . | . . . . . Weapon 15 | 3 6 6 . . Energy Gun 6 | 2 4 . . . Energy Cannon . | . . . . . Ballistic Gun 7 | 1 1 5 . . Ballistic Cannon . | . . . . . Launcher 2 | . 1 1 . . Special Weapon . | . . . . . Impact Weapon . | . . . . . Slashing Weapon . | . . . . . Piercing Weapon . | . . . . . Special Melee Weapon . | . . . . . Unidentified Prototypes 1 | . . 1 . . Parts Lost 8 | . 4 3 . 1 Power . | . . . . . Propulsion 2 | . 1 . . 1 Utility 2 | . 1 1 . . Weapon 4 | . 2 2 . . Highest Loss Streak 2 | . 2 2 . 1 To Critical Strikes . | . . . . . Average Slot Usage (%) 98 | . 96 99 100 99 Engine 13 | . 14 14 14 13 Treads 20 | . 18 20 28 14 Wheel 6 | . 5 7 . 13 Device 12 | . 9 13 14 14 Storage 14 | . 14 14 14 14 Protection 1 | . 3 . . . Energy Gun 10 | . 23 6 . . Ballistic Gun 17 | . 4 21 28 28 Peak Build Rating 15 | 7 8 15 11 11 Average Rating 9 | 5 7 10 10 10 On Entrance 7 | . 7 8 10 11 Naked Turns . | . . . . . Heaviest Build 56 | 15 49 56 48 48 Greatest Support 40 | 20 40 40 40 40 Greatest Overweight (x) 4 | 1 4 4 1 4 Average Overweight (x) 1 | . 1 1 1 3 Largest Inventory Capacity 20 | 8 20 20 20 20 Average Capacity 18 | 7 16 20 20 20 Most Carried 20 | 6 17 20 20 20 Average Carried 17 | 4 14 19 19 19 Final Capacity 20 | 8 20 20 20 20 Final Carried 20 | 6 17 20 20 20 Class Distribution -------------------- 52% | Mutant 47% | Scavenger-Mutant Dominant Class ---------------- Mutant | -10/Materials Scavenger-Mutant | -10/Mines Scavenger-Mutant | -10/Exiles Scavenger-Mutant | -9/Mines Resources | -11 -10 -10 -10 -9 ----------- Run | Yrd Mat Min Exi Min Matter Collected 1250 | 308 662 242 . 38 Remotely . | . . . . . Salvage Created 1363 | 93 920 286 . 64 Parts 84 | 2 56 22 . 4 Haulers Intercepted 2 | . 2 . . . Recyclers Shooed 1 | . 1 . . . Parts Field Recycled . | . . . . . Retrieved Matter . | . . . . . Parts Self-Destructed . | . . . . . Prevented . | . . . . . Kills | -11 -10 -10 -10 -9 ------- Run | Yrd Mat Min Exi Min Combat Hostiles Destroyed 31 | . 17 10 . 4 Guns 29 | . 17 8 . 4 AOE 2 | . . 2 . . Classes Destroyed 9 | 2 7 . . . Worker 4 | . 3 1 . . Builder 1 | . 1 . . . Tunneler 1 | 1 . . . . Hauler 2 | . 2 . . . Recycler 2 | 1 1 . . . Operator 1 | . 1 . . . Watcher 3 | . 3 . . . Swarmer 15 | . 5 6 . 4 Grunt 16 | . 12 4 . . Best Kill Streak 5 | 1 5 3 . 4 Combat Bots Only 4 | . 3 3 . 4 Max Kills in Single Turn 2 | 1 1 2 . 1 Gunslinging . | . . . . . Exploded 2 | . . 2 . . Melee . | . . . . . Uniques/NPCs Destroyed . | . . . . . Combat | -11 -10 -10 -10 -9 -------- Run | Yrd Mat Min Exi Min Hostile Shots Fired 185 | . 110 56 . 19 Missed 40 | . 23 11 . 6 Damage Taken 1590 | . 1012 455 . 123 Core 256 | . 123 103 . 30 Absorbed by Shields . | . . . . . Core Remaining (%) 100 | 100 . . . . Volleys Fired 164 | 16 99 43 . 6 Largest 2 | 2 2 2 . 2 Hottest 90 | 70 90 90 . 40 Shots Fired 290 | 23 187 68 . 12 Gun 288 | 23 186 67 . 12 Cannon . | . . . . . Launcher 2 | . 1 1 . . Special . | . . . . . Kinetic 128 | 16 42 58 . 12 Thermal 148 | 7 132 9 . . Explosive 2 | . 1 1 . . Electromagnetic 12 | . 12 . . . Robot Hit Streak 20 | 4 20 8 . 5 Robot Miss Streak 3 | 2 3 3 . 2 Penetration Max . | . . . . . Secondary Targets . | . . . . . Shots Hit Robots 186 | 12 121 43 . 10 Core Hits 78 | 3 44 24 . 7 Critical Kills . | . . . . . Critical Parts Destroyed 1 | . . 1 . . Critical Strikes 4 | 1 2 1 . . Burn 3 | 1 2 . . . Destroy 1 | . . 1 . . Melee Attacks . | . . . . . Impact . | . . . . . Slashing . | . . . . . Piercing . | . . . . . Sneak Attacks . | . . . . . Combat Hostiles . | . . . . . Follow-up Attacks . | . . . . . Damage Inflicted 2233 | 151 1555 445 . 82 Guns 2157 | 151 1555 369 . 82 Cannons . | . . . . . Explosions 76 | . . 76 . . Melee . | . . . . . Ramming . | . . . . . Kinetic 845 | 100 366 297 . 82 Thermal 1196 | 51 1073 72 . . Explosive 76 | . . 76 . . Electromagnetic 116 | . 116 . . . Impact . | . . . . . Slashing . | . . . . . Piercing . | . . . . . Highest Corruption . | . . . . . Average Corruption . | . . . . . Corruption Purged . | . . . . . Corruption Blocked . | . . . . . Overload Shots . | . . . . . Overflow Damage . | . . . . . Projectiles . | . . . . . Explosions . | . . . . . Melee . | . . . . . Knockbacks . | . . . . . Impact . | . . . . . Kinetic . | . . . . . Secondary . | . . . . . Self-Inflicted Damage . | . . . . . Shots . | . . . . . Rammed 1 | . . 1 . . Targets Rammed 1 | . . 1 . . Kicked . | . . . . . Crushed . | . . . . . Highest Temperature 359 | 27 359 30 . . Average Temperature 72 | 11 77 14 . . Received Heat Transfer 606 | . 480 126 . . Effects 3 | . 3 . . . Shutdowns 1 | . 1 . . . Energy Bleed 1 | . 1 . . . Matter Decay 1 | . 1 . . . Siege Activations . | . . . . . Robots Corrupted . | . . . . . Combat Hostiles . | . . . . . Parts Fried . | . . . . . Impact Corruptions . | . . . . . Robots Melted . | . . . . . Combat Hostiles . | . . . . . Parts Melted 7 | 1 6 . . . Heat Transferred 3306 | 222 2922 162 . . Parts Sabotaged . | . . . . . Parts Stolen . | . . . . . Parts Stripped . | . . . . . Power Chain Reactions . | . . . . . Alert | -11 -10 -10 -10 -9 ------- Run | Yrd Mat Min Exi Min Peak Influence 298 | 10 298 135 . 80 Initial 35 | . 6 35 . . Average 85 | 2 162 35 . 78 Maximum Alert Level 1 | . 1 . . . Low Security (%) 93 | 100 83 100 . 100 Level 1 6 | . 16 . . . Level 2 . | . . . . . Level 3 . | . . . . . Level 4 . | . . . . . Level 5 . | . . . . . High Security . | . . . . . Max Security . | . . . . . Squads Dispatched 3 | . 3 . . . Investigation 1 | . 1 . . . Extermination . | . . . . . Reinforcement 2 | . 2 . . . Assault . | . . . . . Garrison . | . . . . . Intercept . | . . . . . Searches Triggered . | . . . . . Construction Impeded . | . . . . . Haulers Reinforced . | . . . . . Active Scanning Responses . | . . . . . Cargo Convoy Interrupts . | . . . . . Stealth | -11 -10 -10 -10 -9 --------- Run | Yrd Mat Min Exi Min Distress Signals 1 | . 1 . . . Communications Jammed . | . . . . . Distress Signals . | . . . . . Times Spotted 44 | . 29 10 . 5 Peak Tracking Total 4 | . 3 3 . 4 Tactical Retreats 1 | . 1 . . . Traps | -11 -10 -10 -10 -9 ------- Run | Yrd Mat Min Exi Min Traps Triggered 1 | . 1 . . . Indirectly . | . . . . . Trap Hack Attempts . | . . . . . Triggered . | . . . . . Disarmed 6 | . 6 . . . Reprogrammed . | . . . . . Reused . | . . . . . Traps Extracted . | . . . . . Installed . | . . . . . Triggered . | . . . . . Machines | -11 -10 -10 -10 -9 ---------- Run | Yrd Mat Min Exi Min Machines Disabled . | . . . . . Max in Single Turn . | . . . . . Machines Repaired . | . . . . . Machines Dismantled . | . . . . . Machines Sabotaged . | . . . . . Overloaded Fab Kills . | . . . . . Hacking | -11 -10 -10 -10 -9 --------- Run | Yrd Mat Min Exi Min Machines Accessed 8 | . 5 1 2 . Terminals 3 | . 3 . . . Fabricators . | . . . . . Repair Stations . | . . . . . Recycling Units 2 | . 2 . . . Scanalyzers . | . . . . . Garrison Access . | . . . . . Total Hacks 19 | . 16 1 2 . Successful 15 | . 12 1 2 . Failed 3 | . 3 . . . Catastrophic . | . . . . . Database Lockouts 1 | . 1 . . . Manual 13 | . 12 . 1 . Terminals 12 | . 12 . . . Fabricators . | . . . . . Repair Stations . | . . . . . Recycling Units 4 | . 4 . . . Scanalyzers . | . . . . . Garrison Access . | . . . . . Terminal Hacks 10 | . 7 1 2 . Record 2 | . 1 . 1 . Robot Analysis 2 | . 2 . . . Open Door 1 | . . 1 . . Branch Access Points 1 | . 1 . . . Locate Traps 1 | . 1 . . . Disarm Traps 1 | . 1 . . . Zone Layout 1 | . 1 . . . Derelict Proto ID Bank 1 | . . . 1 . Fabricator Hacks . | . . . . . Repair Station Hacks . | . . . . . Recycling Unit Hacks 2 | . 2 . . . Retrieve Components 2 | . 2 . . . Scanalyzer . | . . . . . Garrison Access Hacks . | . . . . . Unauthorized Hacks 3 | . 3 . . . Terminals 2 | . 2 . . . Assimilate 2 | . 2 . . . Fabricators . | . . . . . Repair Stations . | . . . . . Recycling Units 1 | . 1 . . . Reject 1 | . 1 . . . Scanalyzers . | . . . . . Garrison Access . | . . . . . Data Cores Recovered . | . . . . . Used . | . . . . . Hacking Detections 4 | . 4 . . . Full Trace Events . | . . . . . Feedback Events . | . . . . . Feedback Blocked . | . . . . . Robot Schematics Acquired . | . . . . . Robots Built . | . . . . . Authchips . | . . . . . Time . | . . . . . Total Robot Build Rating . | . . . . . Part Schematics Acquired . | . . . . . Parts Built . | . . . . . Authchips . | . . . . . Time . | . . . . . Total Part Build Rating . | . . . . . Parts Repaired . | . . . . . Time . | . . . . . Parts Recycled . | . . . . . Recycled Matter . | . . . . . Retrieved Matter . | . . . . . Retrieved Components 1 | . 1 . . . Parts Scanalyzed . | . . . . . Part Schematics Acquired . | . . . . . Parts Damaged . | . . . . . Bothacking | -11 -10 -10 -10 -9 ------------ Run | Yrd Mat Min Exi Min Used RIF Installer . | . . . . . Robots Hacked . | . . . . . Non-combat . | . . . . . Combat . | . . . . . Robot Hacks Applied . | . . . . . Relay Couplers Released . | . . . . . Fabnet Peak Effective % . | . . . . . Robots Rewired . | . . . . . Allies Hacked . | . . . . . Hacks Repelled . | . . . . . Allies | -11 -10 -10 -10 -9 -------- Run | Yrd Mat Min Exi Min Total Allies . | . . . . . Largest Group . | . . . . . Highest-Rated Group . | . . . . . Highest-Rated Ally . | . . . . . Total Orders . | . . . . . Ally Attacks . | . . . . . Total Damage . | . . . . . Kills . | . . . . . Allies Corrupted . | . . . . . Allies Melted . | . . . . . Intel | -11 -10 -10 -10 -9 ------- Run | Yrd Mat Min Exi Min Robot Analysis Total 2 | . 2 . . . Derelict Logs Recovered 1 | . . 1 . . Drone Launches . | . . . . . Drone Recoveries . | . . . . . Exploration | -11 -10 -10 -10 -9 ------------- Run | Yrd Mat Min Exi Min Turns Passed 4923 | 210 1607 2111 611 384 Spaces Moved 1997 | 118 737 812 254 76 Core 2 | 2 . . . . Treads 1242 | 26 315 646 254 1 Legs 137 | 88 49 . . . Wheels 616 | 2 373 166 . 75 Hover . | . . . . . Flight . | . . . . . Fastest Speed 50 | 50 110 140 240 140 Average Speed 203 | 128 166 242 240 141 Slowest Speed 320 | 190 320 320 240 240 Overloaded Moves . | . . . . . Propulsion Burnouts . | . . . . . Robots Hopped . | . . . . . Cave-ins Triggered . | . . . . . Exploration Rate (%) 53 | 6 89 99 61 13 Regions Visited 4 Branch Regions 3 Pre-discovered Areas 2 | . . 1 1 . Known Exits Taken 1 | . 1 . . . Unknown Exits Taken 3 | 1 . 1 1 . Scrap Searched 3 | . . 3 . . Spaces Dug . | . . . . . Terrain Destroyed 15 | . 8 7 . . Melee . | . . . . . Projectile . | . . . . . AOE 15 | . 8 7 . . Terrain Rammed . | . . . . . Walls Destroyed . | . . . . . Machines Disabled . | . . . . . Actions | -11 -10 -10 -10 -9 --------- Run | Yrd Mat Min Exi Min Total 2567 | 149 928 890 257 343 Wait 274 | . 18 4 . 252 Move 1993 | 117 736 811 253 76 Hop . | . . . . . Pick Up 38 | 3 25 7 2 1 Fast Attach 19 | 10 3 3 . 3 Attach 10 | . 6 3 . 1 Detach 5 | 3 1 . . 1 Swap 35 | . 23 12 . . Drop 28 | . 17 6 2 3 Fire 164 | 16 99 43 . 6 Melee . | . . . . . Ram . | . . . . . Kick . | . . . . . Crush 1 | . . 1 . . Escape Stasis . | . . . . . Rewire . | . . . . . Trap . | . . . . . Miscellaneous . | . . . . . Route ------- -11/Scrapyard -10/Materials (discovered 4 exits: [*Mat x2] / *Min x2) -10/Mines (discovered 4 exits: [*Mat x2] / *Exi / [*Sub]) -10/Exiles -9/Mines History --------- Turn | Location | Event 2 | -11/Scrapyard | Met Revision 17 20 | -11/Scrapyard | Discovered new exit (range 15) 211 | -11/Scrapyard | Entered Materials 215 | -10/Materials | Central database locked down 325 | -10/Materials | Build established: Mutant 560 | -10/Materials | Discovered new exit (range 12) 894 | -10/Materials | Identified exit to Mines 1152 | -10/Materials | Discovered new exit (range 12) 1818 | -10/Materials | Entered Mines 1831 | -10/Mines | Found the Drone Emporium 1845 | -10/Mines | Found Prototype Device 1846 | -10/Mines | Identified Splice Drone Bay 2096 | -10/Mines | Received a Rocket Launcher from a helpful Derelict 2150 | -10/Mines | Learned location of Storage (-9) 2218 | -10/Mines | Learned 2 Materials zone layouts 2220 | -10/Mines | Core integrity fell below 50% 2387 | -10/Mines | Discovered new exit (range 15) 2622 | -10/Mines | Discovered new exit (range 6) 2777 | -10/Mines | Core integrity fell below 20% 3043 | -10/Mines | Build established: Scavenger-Mutant 3838 | -10/Mines | Discovered new exit (range 6) 3917 | -10/Mines | Deemed a non-threat by the Exiles lab entrance 3917 | -10/Mines | Discovered new exit (range 6) 3929 | -10/Mines | Entered Exiles 3989 | -10/Exiles | Met 8R-AWN 4028 | -10/Exiles | Met EX-HEX 4097 | -10/Exiles | Met EX-BIN 4126 | -10/Exiles | Aligned with FarCom system 4129 | -10/Exiles | Given EX-Vault access code 4186 | -10/Exiles | Opened EX-Vault 4201 | -10/Exiles | Found Field Lobotomy Kit 4248 | -10/Exiles | Warned to stay clear of 0b10 Research branches 4317 | -10/Exiles | Met EX-DEC 4339 | -10/Exiles | Learned location of Zion (-6) 4516 | -10/Exiles | Discovered new exit (range 10) 4540 | -10/Exiles | Left Exiles lab with Field Lobotomy Kit 4540 | -10/Exiles | Entered Mines 4582 | -9/Mines | Assembled infested the area 4587 | -9/Mines | Assisted by a Guerilla fighting off Assembled 4924 | -9/Mines | Destroyed by as-94837 with Assembled Maul Last Messages --------------- 04557_ Dropped Ion Engine. 04557_ Acquired 12 matter. 04560_ Acquired Lgt. Ion Engine. 04562_ Acquired 13 matter. 04571_ Acquired Flight Unit. 04575_ T-07 Excavator is excavating. 04582_ ALERT: Infestation in the mines, dispatching Demolisher response squad. 04587_ A derelict emerges from the shadows: "You need to get out of here! I've been tracking a group of Assembled to figure out where they're coming from, and they're closing on this area, come on!" 04588_ T-07 Excavator is excavating. 04891_ Dropped Wheel. 04891_ Acquired Wheel. 04893_ Acquired 10 matter. 04895_ Dropped Heat Sink. 04897_ Acquired Seismic Detector. 04899_ Acquired 3 matter. Map ----- +----------------------------------------------------+ | | | | | | | | | | | | | | | | | ????????????????????????????????????????????? | | ???????????##########???????????????????????? | | ???????????##########???????????????????????? | | ???????????## ##???????????????????????? | | ?#######???## ##???????????????????????? | | ?########??## ##???????????????????????? | | ?## ####?## %"%[##???????????????????????? | | ?## ###### %%* ##???????????????????????? | | ?## ##### """* ##???????????????????????? | | ?## """ ##???????????????????????? | | ?### ###### """ ##???????????????????????? | | ?############ ##???????????????????????? | | ??#######??### ######???????????????????????? | | ???????????### ######???????????????????????? | | ????????????## #################??? #??????? | | ????????????## ############ ### ##?????? | | ????????????## = #?????? | | ????????????## @a| #???? | | ????????????#### ######### #??? | | ????????????#### ########## #?? | | ??????????????## ##???????"# % ?? | | ??????????????## ##??????### ?? | | ??????????????## ##???????? % ! ??? | | ??????????????## ##????????% % !%% ??? | | ?????????????? ##???????? ## =%===??? | | ??????????????#####???????? ##?# *%#???? | | ??????????????####????????? ###???#####???? | | ??????????????????????????? ##?????????????? | | ??????????????????????????? #??????????????? | | ??????????????????????????? #???????????????? | | ???????????????????????????#????????????????? | | ????????????????????????????????????????????? | | ????????????????????????????????????????????? | | ????????????????????????????????????????????? | | ????????????????????????????????????????????? | | ????????????????????????????????????????????? | | ????????????????????????????????????????????? | | ????????????????????????????????????????????? | | ????????????????????????????????????????????? | | ????????????????????????????????????????????? | | ????????????????????????????????????????????? | | ????????????????????????????????????????????? | +----------------------------------------------------+ Best States ------------- Heat Dissipation 39 Energy Generation 10 Energy Capacity 250 Matter Stores 300 Matter Capacity 300 Sight Range 16 Terrain Scan Density 10 Armor Coverage 150 Evasion (%) 55 Recoil Reduction 2 Item Schematics ----------------- None Robot Schematics ------------------ None Fabricated ------------ Nothing Alien Tech Used ----------------- None Achievements -------------- root@ Challenges ------------ None Game ------ Seed BiomechanicalLegCharge Manual? 0 Play Time 00:38:01 Cumulative 8.7 hours Start 2024.10.01 @ 19:31:57 End 2024.10.01 @ 20:12:36 Sessions 1 Manual Loads 0 Difficulty Rogue Special Mode None Game No. 9 Rogue 9 Adventurer 0 Explorer 0 Win Type - Total 0 Types 0/0/0/0/0/0/0/0/0 Lore% 13 Gallery% 10 Achievement% 16 Wizard Run 0 Options --------- Layout 1 ASCII 0 Keyboard 0 Movement Mouse Keybinds 0 Fullscreen 1 Font 24/Smallcaps Map View 50x35 Zoom Use 0% Tactical HUD 1 Map Filters NONE Filters NONE Steam 1 RUN: 93a22a3c-2c56-49e3-b17e-925fd390b72a